Cogmind - Beta 12 @@@ ROGUE MODE // 2023.11.29 @ 19:06:44 Player: veb_robotron Result: Destroyed by G-47 Trooper with Particle Gun Performance ------------- Evolutions (2) 1000 Regions Visited (5) 1000 Robots Destroyed (19) 95 Value Destroyed (555) 555 Prototype IDs (1) 20 Alien Tech Used (0) 0 Bonus (0) 0 TOTAL SCORE: 2670 Bonus ------- None Cogmind --------- Core Integrity 0/550 Matter 264/300 Energy 98/100 System Corruption 0% Temperature Cool (9) Movement Core (50) Location -8/Storage Parts ------- > --- POWER (1) -------- (None) > --- PROPULSION (4) --- (None) > --- UTILITY (4) ------ Visual Processing Unit Sensor Array Improved Signal Interpreter Terrain Scanner > --- WEAPON (2) ------- (None) > --- INVENTORY (5) ---- Carbon-fiber Leg Carbon-fiber Leg Carbon-fiber Leg Lightning Gun Precision Rocket Launcher Peak State ------------ > --- POWER ------------ Improved Deuterium Engine > --- PROPULSION ------- Gravmag System Gravmag System Gravmag System Gravmag System > --- UTILITY ---------- Visual Processing Unit Sensor Array Improved Signal Interpreter Long-range Tractor Beam > --- WEAPON ----------- Lightning Gun Lightning Gun > --- INVENTORY -------- Improved Deuterium Engine Sensor Array Lightning Gun Lightning Gun [Rating: 38] Favorites ----------- Power Ion Engine Engine Ion Engine Propulsion Flight Unit Leg Aluminum Leg Hover Unit Gravmag System Flight Unit Flight Unit Utility Visual Processing Unit Device Sensor Array Storage Small Storage Unit Processor Visual Processing Unit Weapon Medium Laser Energy Gun Medium Laser Energy Cannon Advanced Beam Cannon Ballistic Gun Assault Rifle Build | -11 -10 -9 -9 -8 -8 ------- Run | Jun Mat Mat Min Mat Sto Slots Evolved 4 | . . 2 . 2 . Power . | . . . . . . Propulsion 2 | . . . . 2 . Utility 2 | . . 2 . . . Weapon . | . . . . . . Parts Attached 40 | 8 2 10 1 12 7 Power 6 | 2 . 1 1 1 1 Engine 6 | 2 . 1 1 1 1 Core . | . . . . . . Reactor . | . . . . . . Propulsion 11 | 2 . 3 . 6 . Treads . | . . . . . . Leg 2 | 2 . . . . . Wheel . | . . . . . . Hover 4 | . . . . 4 . Flight 5 | . . 3 . 2 . Utility 11 | 1 1 2 . 3 4 Device 7 | . . 1 . 2 4 Storage 1 | 1 . . . . . Processor 3 | . 1 1 . 1 . Hackware . | . . . . . . Protection . | . . . . . . Artifact . | . . . . . . Weapon 12 | 3 1 4 . 2 2 Energy Gun 9 | 2 . 3 . 2 2 Energy Cannon 1 | . . 1 . . . Ballistic Gun 2 | 1 1 . . . . Ballistic Cannon . | . . . . . . Launcher . | . . . . . . Special Weapon . | . . . . . . Impact Weapon . | . . . . . . Slashing Weapon . | . . . . . . Piercing Weapon . | . . . . . . Special Melee Weapon . | . . . . . . Unidentified Prototypes 1 | . . 1 . . . Parts Lost 12 | . 1 2 . . 9 Power 1 | . . . . . 1 Propulsion 6 | . . 2 . . 4 Utility 1 | . . . . . 1 Weapon 4 | . 1 . . . 3 Highest Loss Streak 9 | . 1 1 . . 9 To Critical Strikes . | . . . . . . Average Slot Usage (%) 88 | . 95 92 88 98 69 Engine 10 | . 14 11 11 9 6 Leg 7 | . 28 10 . . . Hover 4 | . . . . 12 17 Flight 11 | . . 9 22 21 . Device 10 | . . 11 11 17 15 Storage 4 | . 14 6 . . . Processor 18 | . 11 22 22 18 18 Energy Gun 15 | . 15 9 22 18 12 Energy Cannon 1 | . . 5 . . . Ballistic Gun 3 | . 10 6 . . . Naked Turns . | . . . . . . Heaviest Build 20 | 14 14 17 11 20 20 Greatest Support 36 | 20 20 20 8 36 36 Greatest Overweight (x) 4 | 4 . 1 1 1 2 Average Overweight (x) . | 1 . . 1 . . Largest Inventory Capacity 8 | 8 8 8 5 5 5 Average Capacity 6 | 7 8 6 5 5 5 Most Carried 8 | 8 8 8 5 5 5 Average Carried 5 | 4 6 4 4 4 4 Final Capacity 8 | 8 8 5 5 5 5 Final Carried 6 | 6 6 5 5 5 5 Class Distribution -------------------- 32% | Scavenger-Skirmisher 29% | Mutant 19% | Scout 9% | Skirmisher 8% | Scavenger-Scout Dominant Class ---------------- Mutant | -10/Materials Skirmisher | -9/Materials Scavenger-Skirmisher | -9/Mines Scavenger-Scout | -8/Materials Scout | -8/Storage Resources | -11 -10 -9 -9 -8 -8 ----------- Run | Jun Mat Mat Min Mat Sto Matter Collected 600 | 205 104 87 59 124 21 Remotely 110 | . . . . 110 . Salvage Created 719 | . 156 103 . 190 270 Parts 38 | . 14 12 . 7 5 Haulers Intercepted . | . . . . . . Recyclers Shooed . | . . . . . . Parts Field Recycled . | . . . . . . Retrieved Matter . | . . . . . . Parts Self-Destructed . | . . . . . . Prevented . | . . . . . . Kills | -11 -10 -9 -9 -8 -8 ------- Run | Jun Mat Mat Min Mat Sto Combat Hostiles Destroyed 16 | . 5 4 . 4 3 Guns 10 | . 4 3 . 2 1 AOE 4 | . 1 . . 2 1 Classes Destroyed 6 | . 3 1 . 1 1 Tunneler 1 | . . . . 1 . Recycler 1 | . . . . . 1 Watcher 1 | . 1 . . . . Swarmer 6 | . 3 3 . . . Grunt 8 | . 2 . . 3 3 Sentry 2 | . . 1 . 1 . Best Kill Streak 4 | . 4 2 . 4 4 Combat Bots Only 3 | . 3 2 . 3 3 Max Kills in Single Turn 3 | . 1 1 . 3 1 Gunslinging . | . . . . . . Exploded 2 | . 1 . . 2 1 Melee . | . . . . . . Uniques/NPCs Destroyed . | . . . . . . Combat | -11 -10 -9 -9 -8 -8 -------- Run | Jun Mat Mat Min Mat Sto Damage Taken 1784 | . 271 318 . 41 1154 Core 628 | . 28 44 . . 556 Absorbed by Shields . | . . . . . . Regen/Repaired (Parts) 37 | . . 37 . . . Core Remaining (%) 92 | 100 88 . 89 . . Volleys Fired 63 | . 20 20 . 7 16 Largest 2 | . 2 2 . 2 2 Hottest 110 | . 80 100 . 110 110 Shots Fired 108 | . 30 39 . 12 27 Gun 97 | . 30 28 . 12 27 Cannon 11 | . . 11 . . . Launcher . | . . . . . . Special . | . . . . . . Kinetic 20 | . 10 10 . . . Thermal 31 | . . 29 . 2 . Explosive . | . . . . . . Electromagnetic 57 | . 20 . . 10 27 Robot Hit Streak 7 | . 6 5 . 4 7 Robot Miss Streak 8 | . 4 8 . 1 3 Penetration Max . | . . . . . . Secondary Targets 1 | . . . . . 1 Max Gunslinging Chain 1 | . . . . . 1 Shots Hit Robots 62 | . 17 18 . 9 18 Core Hits 29 | . 7 5 . 7 10 Critical Kills 1 | . . 1 . . . Critical Parts Destroyed . | . . . . . . Critical Strikes 3 | . . 2 . . 1 Burn 1 | . . 1 . . . Meltdown 1 | . . 1 . . . Corrupt 1 | . . . . . 1 Melee Attacks . | . . . . . . Impact . | . . . . . . Slashing . | . . . . . . Piercing . | . . . . . . Sneak Attacks . | . . . . . . Combat Hostiles . | . . . . . . Follow-up Attacks . | . . . . . . Damage Inflicted 1609 | . 272 283 . 469 585 Guns 1032 | . 232 181 . 193 426 Cannons 102 | . . 102 . . . Explosions 469 | . 40 . . 276 153 Melee . | . . . . . . Ramming 6 | . . . . . 6 Kinetic 172 | . 91 81 . . . Thermal 697 | . 40 202 . 302 153 Explosive . | . . . . . . Electromagnetic 734 | . 141 . . 167 426 Impact . | . . . . . . Slashing . | . . . . . . Piercing . | . . . . . . Highest Corruption . | . . . . . . Average Corruption . | . . . . . . Corruption Purged . | . . . . . . Corruption Blocked . | . . . . . . Overload Shots . | . . . . . . Overflow Damage 20 | . 20 . . . . Projectiles . | . . . . . . Explosions 20 | . 20 . . . . Melee . | . . . . . . Knockbacks . | . . . . . . Impact . | . . . . . . Kinetic . | . . . . . . Secondary . | . . . . . . Self-Inflicted Damage 18 | . . . . . 18 Shots 1 | . . . . . 1 Rammed 2 | . . . . . 2 Targets Rammed 2 | . . . . . 2 Kicked . | . . . . . . Crushed . | . . . . . . Highest Temperature 605 | . 96 314 . 262 605 Average Temperature 186 | . 48 113 . 128 366 Received Heat Transfer 831 | . 102 45 . 18 666 Effects 14 | . . . . . 14 Energy Bleed 1 | . . . . . 1 Interference 3 | . . . . . 3 Matter Decay 1 | . . . . . 1 Short Circuit 4 | . . . . . 4 Damage (minor) 1 | . . . . . 1 Damage (major) 4 | . . . . . 4 Siege Activations . | . . . . . . Robots Corrupted 1 | . . . . . 1 Combat Hostiles 1 | . . . . . 1 Parts Fried 5 | . . . . 1 4 Impact Corruptions . | . . . . . . Robots Melted 1 | . . 1 . . . Combat Hostiles 1 | . . 1 . . . Parts Melted 1 | . . 1 . . . Heat Transferred 1229 | . 50 555 . 374 250 Parts Sabotaged . | . . . . . . Parts Stolen . | . . . . . . Parts Stripped . | . . . . . . Power Chain Reactions 5 | . 1 . . 2 2 Missiles Intercepted . | . . . . . . Alert | -11 -10 -9 -9 -8 -8 ------- Run | Jun Mat Mat Min Mat Sto Peak Influence 204 | . 136 204 79 148 188 Initial 79 | . . 57 79 30 62 Average 86 | . 101 124 79 77 95 Maximum Alert Level 1 | . . 1 . . . Low Security (%) 99 | 100 100 98 100 100 100 Level 1 . | . . 1 . . . Level 2 . | . . . . . . Level 3 . | . . . . . . Level 4 . | . . . . . . Level 5 . | . . . . . . High Security . | . . . . . . Max Security . | . . . . . . Squads Dispatched 4 | . 1 1 . 1 1 Investigation 1 | . . . . . 1 Extermination . | . . . . . . Reinforcement 3 | . 1 1 . 1 . Assault . | . . . . . . Garrison . | . . . . . . Intercept . | . . . . . . Searches Triggered . | . . . . . . Construction Impeded . | . . . . . . Haulers Reinforced . | . . . . . . Active Scanning Responses . | . . . . . . Cargo Convoy Interrupts . | . . . . . . Stealth | -11 -10 -9 -9 -8 -8 --------- Run | Jun Mat Mat Min Mat Sto Distress Signals 3 | . . 2 . . 1 Communications Jammed . | . . . . . . Distress Signals . | . . . . . . Times Spotted 33 | . 7 8 . 4 14 Peak Tracking Total 8 | . 5 4 . 3 8 Tactical Retreats 3 | . . . . . 3 Traps | -11 -10 -9 -9 -8 -8 ------- Run | Jun Mat Mat Min Mat Sto Traps Triggered . | . . . . . . Indirectly . | . . . . . . Trap Hack Attempts . | . . . . . . Triggered . | . . . . . . Disarmed . | . . . . . . Reprogrammed . | . . . . . . Reused . | . . . . . . Traps Extracted . | . . . . . . Installed . | . . . . . . Triggered . | . . . . . . Machines | -11 -10 -9 -9 -8 -8 ---------- Run | Jun Mat Mat Min Mat Sto Machines Disabled 1 | . 1 . . . . Max in Single Turn 1 | . 1 . . . . Machines Repaired . | . . . . . . Machines Sabotaged . | . . . . . . Overloaded Fab Kills . | . . . . . . Hacking | -11 -10 -9 -9 -8 -8 --------- Run | Jun Mat Mat Min Mat Sto Machines Accessed 9 | . 2 3 . 1 3 Terminals 8 | . 2 2 . 1 3 Fabricators . | . . . . . . Repair Stations 1 | . . 1 . . . Recycling Units . | . . . . . . Scanalyzers . | . . . . . . Garrison Access . | . . . . . . Total Hacks 20 | . 5 8 . 2 5 Successful 11 | . 2 5 . 1 3 Failed 9 | . 3 3 . 1 2 Catastrophic 3 | . . 1 . 1 1 Database Lockouts . | . . . . . . Manual 3 | . 2 . . . 1 Terminals 18 | . 5 6 . 2 5 Fabricators . | . . . . . . Repair Stations 2 | . . 2 . . . Recycling Units . | . . . . . . Scanalyzers . | . . . . . . Garrison Access . | . . . . . . Terminal Hacks 9 | . 2 3 . 1 3 Open Door 2 | . . . . . 2 Alert Level 1 | . . 1 . . . Locate Traps 3 | . 1 . . 1 1 Dispatch Records 1 | . 1 . . . . Investigation Status 1 | . . 1 . . . Registered Components 1 | . . 1 . . . Fabricator Hacks . | . . . . . . Repair Station Hacks 2 | . . 2 . . . Scan Component 1 | . . 1 . . . Repair 1 | . . 1 . . . Recycling Unit Hacks . | . . . . . . Scanalyzer . | . . . . . . Garrison Access Hacks . | . . . . . . Unauthorized Hacks . | . . . . . . Terminals . | . . . . . . Fabricators . | . . . . . . Repair Stations . | . . . . . . Recycling Units . | . . . . . . Scanalyzers . | . . . . . . Garrison Access . | . . . . . . Data Cores Recovered . | . . . . . . Used . | . . . . . . Hacking Detections 8 | . 2 3 . 1 2 Full Trace Events 1 | . . . . . 1 Feedback Events . | . . . . . . Feedback Blocked . | . . . . . . Robot Schematics Acquired . | . . . . . . Robots Built . | . . . . . . Authchips . | . . . . . . Time . | . . . . . . Total Robot Build Rating . | . . . . . . Part Schematics Acquired . | . . . . . . Parts Built . | . . . . . . Authchips . | . . . . . . Time . | . . . . . . Total Part Build Rating . | . . . . . . Parts Repaired 1 | . . 1 . . . Time 26 | . . 26 . . . Parts Recycled . | . . . . . . Recycled Matter . | . . . . . . Retrieved Matter . | . . . . . . Retrieved Components . | . . . . . . Parts Scanalyzed . | . . . . . . Part Schematics Acquired . | . . . . . . Parts Damaged . | . . . . . . Bothacking | -11 -10 -9 -9 -8 -8 ------------ Run | Jun Mat Mat Min Mat Sto Used RIF Installer . | . . . . . . Robots Hacked . | . . . . . . Non-combat . | . . . . . . Combat . | . . . . . . Robot Hacks Applied . | . . . . . . Relay Couplers Released . | . . . . . . Fabnet Peak Effective % . | . . . . . . Robots Rewired . | . . . . . . Allies Hacked . | . . . . . . Hacks Repelled . | . . . . . . Allies | -11 -10 -9 -9 -8 -8 -------- Run | Jun Mat Mat Min Mat Sto Total Allies 1 | . . . 1 . . Largest Group 1 | . . . 1 1 . Highest-Rated Group 31 | . . . 31 31 . Highest-Rated Ally 31 | . . . 31 31 . Total Orders . | . . . . . . Ally Attacks 10 | . . . . 10 . Total Damage 168 | . . . . 168 . Kills 1 | . . . . 1 . Allies Corrupted . | . . . . . . Allies Melted . | . . . . . . Intel | -11 -10 -9 -9 -8 -8 ------- Run | Jun Mat Mat Min Mat Sto Robot Analysis Total . | . . . . . . Derelict Logs Recovered 1 | . . . 1 . . Drone Launches . | . . . . . . Drone Recoveries . | . . . . . . Exploration | -11 -10 -9 -9 -8 -8 ------------- Run | Jun Mat Mat Min Mat Sto Turns Passed 1009 | 96 187 190 276 103 157 Spaces Moved 798 | 50 105 129 222 124 168 Core 109 | 31 . . . . 78 Treads . | . . . . . . Legs 173 | 19 105 49 . . . Wheels . | . . . . . . Hover 111 | . . . . 21 90 Flight 405 | . . 80 222 103 . Fastest Speed 31 | 50 120 37 117 31 48 Average Speed 87 | 150 120 82 117 37 50 Slowest Speed 250 | 250 120 190 117 114 180 Overloaded Moves . | . . . . . . Propulsion Burnouts . | . . . . . . Robots Hopped 1 | . . 1 . . . Cave-ins Triggered . | . . . . . . Exploration Rate (%) 25 | 4 29 15 54 12 37 Regions Visited 5 Branch Regions 2 Pre-discovered Areas . | . . . . . . Known Exits Taken 3 | . . 1 1 1 . Unknown Exits Taken 2 | 1 1 . . . . Scrap Searched 1 | . . . 1 . . Spaces Dug . | . . . . . . Terrain Destroyed 18 | . . . . 11 7 Melee . | . . . . . . Projectile . | . . . . . . AOE 18 | . . . . 11 7 Terrain Rammed . | . . . . . . Walls Destroyed . | . . . . . . Machines Disabled . | . . . . . . Actions | -11 -10 -9 -9 -8 -8 --------- Run | Jun Mat Mat Min Mat Sto Total 1007 | 69 138 175 239 171 215 Wait 22 | . . . 11 . 11 Move 791 | 49 104 126 221 123 168 Hop 1 | . . 1 . . . Pick Up 54 | 12 7 10 3 16 6 Fast Attach 3 | . . 1 . 1 1 Attach 26 | 6 2 7 . 6 5 Detach . | . . . . . . Swap 11 | 2 . 2 1 5 1 Drop 34 | . 5 8 3 13 5 Fire 63 | . 20 20 . 7 16 Melee . | . . . . . . Ram 2 | . . . . . 2 Kick . | . . . . . . Crush . | . . . . . . Escape Stasis . | . . . . . . Rewire . | . . . . . . Trap . | . . . . . . Miscellaneous . | . . . . . . Route ------- -11/Junkyard -10/Materials -9/Materials -9/Mines -8/Materials -8/Storage History --------- Turn | Location | Event 7 | -11/Junkyard | Discovered new exit (range 16) 97 | -11/Junkyard | Entered Materials 267 | -10/Materials | Discovered new exit (range 8) 284 | -10/Materials | Entered another Materials area 284 | -9/Materials | Evolved 2 slots: Utility x2 325 | -9/Materials | Repaired EM Pulse Gun? 468 | -9/Materials | Discovered new exit (range 6) 473 | -9/Materials | Identified exit to Mines 474 | -9/Materials | Entered Mines 723 | -9/Mines | Build established: Scavenger-Skirmisher 740 | -9/Mines | Learned Materials garrison access intel 743 | -9/Mines | Discovered new exit (range 5) 746 | -9/Mines | Received a Mining Laser from a helpful Derelict 749 | -9/Mines | Identified exit to Materials 750 | -9/Mines | Entered Materials 750 | -8/Materials | Accompanied by 1 ally 750 | -8/Materials | Evolved 2 slots: Propulsion x2 751 | -8/Materials | Loaded intel: 1 garrison access location 768 | -8/Materials | Discovered new exit (range 17) 850 | -8/Materials | Identified exit to Storage 853 | -8/Materials | Entered Storage 965 | -8/Storage | Core integrity fell below 50% 988 | -8/Storage | Core integrity fell below 20% 993 | -8/Storage | Lost 9 parts (1p4n1u3w) 1010 | -8/Storage | Destroyed by G-47 Trooper with Particle Gun Last Messages --------------- U-05 Engineer lays Concrete. Acquired 21 matter. U-05 Engineer lays Concrete. K-01 Serf cleans the Compression Vault. U-05 Engineer lays Concrete. K-01 Serf collects debris. U-05 Engineer lays Concrete. U-05 Engineer builds a Wall. K-01 Serf cleans the Compression Vault. Critical hit (Burn: +37). K-01 Serf destroyed. K-01 Serf cleans the Compression Vault. K-01 Serf collects debris. Connecting with Door Terminal... >>Open(Door) Sealed Heavy Doors opened. ALERT: Suspicious activity at Terminal S004. Dispatching Investigation squad. Acquired Prototype Launcher. R-06 Scavenger collects Wheel. Map ----- +----------------------------------------------------+ | ? "????# ##??????###???????????? | | # """??# T#????????????????????? | | # # ##????????????????????? | | # + #????""???????????????? | | # """" # """ #???"Y"#??????????????? | | ? """??# """ #?? ??????????????#? | | ??"????# """ #?? ""???????????????? | | ???????# #? ""???????????????? | | ???????# # "????????????????? | | ???????# """ # ????????????????? | | ???????# """ + ??????????????????? | | ???????# """ #?????????????????????? | | ???????# #?????????????????????? | | ???????# #?????????????????????? | | ???????# r #######???????????????? | | ???????+ #T##%g ## ????????????????? | | ???????# ####gkY## ????????????????? | | ???????# #??# ##! "?????????????????? | | ???????# #??# ## "?????????????????? | | ???????# #??# ## ??????????????????? | | ???????# #??# ## ??????????????????? | | ???????# #??# ##+##/#####???????????? | | ???????# #??# + "????????? | | ???????# T??# ###########???????????? | | ???????# #??# #?????????????????????? | | ???????""""??##@##?????????????????????? | | ??????????????# T#?????????????????????? | | ??????????????# ##?????????????????????? | | ??????????????# #??????????????????????? | | ??????????????###??????????????????????? | | ???????????????????????????????????????? | | ???????????????????????????????????????? | | ???????????????????????????????????????? | | ???????????????????????????????????????? | | ???????????????????????????????????????? | | ???????????????????????????????????????? | | ???????????????????????????????????????? | | ???????????????????????????????????????? | | | | | | | | | | | | | | | | | | | | | | | | | +----------------------------------------------------+ Best States ------------- Heat Dissipation 41 Energy Generation 16 Energy Capacity 290 Matter Stores 300 Matter Capacity 300 Sight Range 18 Robot Scan Range 14 Terrain Scan Density 10 Base Temperature (-) 100 Evasion (%) 63 Item Schematics ----------------- None Robot Schematics ------------------ None Fabricated ------------ Nothing Alien Tech Used ----------------- None Achievements -------------- None Challenges ------------ None Game ------ Seed DisposableAbsorptionPurifier Manual? 0 Play Time 00:22:29 Cumulative 32.3 hours Start 2023.11.28 @ 22:35:05 End 2023.11.29 @ 19:06:44 Sessions 2 Manual Loads 0 Difficulty Rogue Special Mode None Game No. 30 Rogue 30 Adventurer 0 Explorer 0 Win Type - Total 0 Types 0/0/0/0/0/0/0/0/0 Lore% 20 Gallery% 41 Achievement% 27 Wizard Run 0 Options --------- ASCII 0 Keyboard 0 Movement Numpad Keybinds 0 Fullscreen 1 Font 18/SmallcapsGlow Map View 76x50 Tactical HUD 0 Map Filters NONE Filters NONE Steam 1 RUN: 5d7ab7b2-cb23-4ccd-a703-c8a57a673563